[Event "Festival Groningen-A 2024"]
[Site "Groningen"]
[Date "2024.12.29"]
[Round "8.22"]
[White "Kanis, Sierk"]
[Black "Avetisyan, Ani"]
[Result "1-0"]
[ECO "D35"]
[WhiteElo "2116"]
[BlackElo "2059"]
[Annotator "RC"]
[PlyCount "139"]
[EventDate "2024.12.21"]
[EventType "swiss"]
[EventCountry "NED"]
[SourceTitle "playchess.com"]
[Source "ChessBase"]
[SourceQuality "1"]
[TimeControl "40/5400+30:1800+30"]

1. d4 {[%emt 0:00:03]} d5 {[%emt 0:00:07]} 2. c4 {[%emt 0:00:04]} e6 {[%emt 0:00:04]} 3. Nc3 {[%emt 0:00:04]} Nf6 {[%emt 0:00:04]} 4. cxd5 {[%emt 0:00:04]} exd5 {[%emt 0:00:03]} 5. Bg5 {[%emt 0:00:06]} c6 {[%emt 0:00:06]} 6. e3 {[%emt 0:00:05]} h6 {[%emt 0:00:05]} 7. Bh4 {[%emt 0:00:19]} Be7 {[%emt 0:00:12]} 8. Bd3 {[%emt 0:00:12]} O-O {[%emt 0:00:11]} 9. Nge2 {[%emt 0:00:34]} Ne8 {[%emt 0:00:18]} 10. Bxe7 {[%emt 0:01:56]} Qxe7 {[%emt 0:00:24]} 11. O-O {[%emt 0:00:07]} Bg4 {[%emt 0:01:34]} 12. Qd2 {[%emt 0:04:15]} Bxe2 {[%emt 0:03:10]} 13. Qxe2 {[%emt 0:00:10]} Nc7 {[%emt 0:07:02]} 14. Rab1 {[%emt 0:02:15]} a5 {[%emt 0:03:01]} 15. Na4 {[%emt 0:02:14]} Nd7 {[%emt 0:02:31]} 16. Rfc1 {[%emt 0:01:22]} Ne6 {[%emt 0:08:17]} 17. Qc2 {[%emt 0:03:04]} b5 {[%emt 0:05:44]} 18. Nc3 {[%emt 0:00:35]} Nb6 {[%emt 0:00:44]} 19. b3 {[%emt 0:01:31]} Rfc8 {[%emt 0:06:22]} 20. Qb2 {[%emt 0:10:56]} Qf6 {[%emt 0:05:38]} 21. Ne2 {[%emt 0:02:42]} a4 {[%emt 0:05:35]} 22. Rc2 {[%emt 0:03:29]} axb3 {[%emt 0:09:02]} 23. axb3 {[%emt 0:01:10]} Qe7 {[%emt 0:00:50]} 24. Qc1 {[%emt 0:04:44]} Qd6 {[%emt 0:01:10]} 25. Bf5 {[%emt 0:03:25]} Rc7 {[%emt 0:04:56]} 26. Bxe6 {[%emt 0:01:34]} Qxe6 {[%emt 0:03:54]} 27. Nf4 {[%emt 0:00:26]} Qd6 {[%emt 0:01:26]} 28. Nd3 {[%emt 0:01:00]} Nd7 {[%emt 0:04:40]} 29. g3 {[%emt 0:06:21]} h5 {[%emt 0:05:23]} 30. h4 {[%emt 0:04:45]} g6 {[%emt 0:03:06]} 31. Rbb2 {[%emt 0:04:42]} Ra6 {[%emt 0:01:29]} 32. Kg2 {[%emt 0:02:40]} Kh7 {[%emt 0:02:51]} 33. Nc5 {[%emt 0:08:26]} Nxc5 {[%emt 0:01:33]} 34. Rxc5 {[%emt 0:00:07]} Rb7 {[%emt 0:02:48]} 35. Qc3 {[%emt 0:05:21]} Qe6 {[%emt 0:00:47]} 36. Rc2 {[%emt 0:00:57]} Rbb6 {[%emt 0:00:38]} 37. f3 {[%emt 0:02:50]} f5 {[%emt 0:05:57]} 38. Kf2 {[%emt 0:01:47]} f4 {[%emt 0:01:43]} 39. exf4 {[%emt 0:13:12]} Qh3 {[%emt 0:00:17]} 40. Qe1 {[%emt 0:00:31]} Ra7 {[%emt 0:01:38]} 41. Qf1 {[%emt 0:39:00]} Qxf1+ {[%emt 0:35:08]} 42. Kxf1 {[%emt 0:01:02]} Ra3 {[%emt 0:00:27]} 43. R5c3 {[%emt 0:00:00]} b4 {[%emt 0:00:00]} 44. Re3 {[%emt 0:00:00]} Kg7 {[%emt 0:00:00]} 45. Kg2 {[%emt 0:00:00]} Kf6 {[%emt 0:00:00]} 46. Rce2 {[%emt 0:00:00]} Rb7 {[%emt 0:00:00]} 47. g4 {[%emt 0:00:00]} Rf7 {[%emt 0:00:00]} 48. Kg3 {[%emt 0:00:00]} Kg7 {[%emt 0:00:00]} 49. Re1 {[%emt 0:00:00]} Ra2 {[%emt 0:00:00]} 50. Rc1 {[%emt 0:00:00]} Rd2 {[%emt 0:00:00]} 51. Rxc6 {[%emt 0:00:00]} Rxd4 {[%emt 0:00:00]} 52. Ree6 {[%emt 0:00:00]} Rdxf4 {[%emt 0:00:02]} 53. Rxg6+ {[%emt 0:00:00]} Kh7 {[%emt 0:01:12]} 54. Rh6+ {[%emt 0:00:38]} Kg7 {[%emt 0:00:37]} 55. Rhg6+ {[%emt 0:00:05]} Kh7 {[%emt 0:00:06]} 56. Rh6+ {[%emt 0:04:33]} Kg7 {[%emt 0:00:05]} 57. Rcg6+ {[%emt 0:00:10]} Kf8 {[%emt 0:00:07]} 58. Rh8+ {[%emt 0:00:04]} Ke7 {[%emt 0:00:06]} 59. gxh5 {[%emt 0:00:18]} Rxf3+ {[%emt 0:01:05]} 60. Kg4 {[%emt 0:00:05]} R3f4+ {[%emt 0:02:53]} 61. Kh3 {[%emt 0:02:14]} Rf3+ {[%emt 0:01:52]} 62. Rg3 {[%emt 0:00:04]} d4 {[%emt 0:00:59]} 63. h6 {[%emt 0:02:06]} Rxg3+ {[%emt 0:00:53]} 64. Kxg3 {[%emt 0:00:04]} Rf6 {[%emt 0:00:39]} 65. h7 {[%emt 0:01:00]} Rg6+ {[%emt 0:00:42]} 66. Kf3 {[%emt 0:00:23]} d3 {[%emt 0:00:31]} 67. Ke3 {[%emt 0:01:03]} Rh6 {[%emt 0:00:39]} 68. Rb8 {[%emt 0:00:27]} Rxh7 {[%emt 0:00:11]} 69. Rb7+ {[%emt 0:00:05]} Ke6 {[%emt 0:00:03]} 70. Rxh7 {[%emt 0:00:06]} 1-0

[Event "Festival Groningen-A 2024"]
[Site "Groningen"]
[Date "2024.12.29"]
[Round "8.23"]
[White "Wempe, Joost"]
[Black "Noordenbos, Daan"]
[Result "0-1"]
[ECO "D78"]
[WhiteElo "2233"]
[BlackElo "2130"]
[Annotator "RC"]
[PlyCount "146"]
[EventDate "2024.12.21"]
[EventType "swiss"]
[EventCountry "NED"]
[SourceTitle "playchess.com"]
[Source "ChessBase"]
[SourceQuality "1"]
[TimeControl "40/5400+30:1800+30"]

1. d4 {[%emt 0:00:04]} Nf6 {[%emt 0:00:09]} 2. Nf3 {[%emt 0:00:04]} g6 {[%emt 0:00:20]} 3. g3 {[%emt 0:00:08]} Bg7 {[%emt 0:00:12]} 4. Bg2 {[%emt 0:00:07]} d5 {[%emt 0:00:13]} 5. O-O {[%emt 0:00:15]} O-O {[%emt 0:00:14]} 6. c4 {[%emt 0:00:02]} c6 {[%emt 0:00:12]} 7. b3 {[%emt 0:03:13]} Bf5 {[%emt 0:01:18]} 8. Bb2 {[%emt 0:00:18]} Nbd7 {[%emt 0:00:46]} 9. e3 {[%emt 0:02:38]} dxc4 {[%emt 0:02:06]} 10. bxc4 {[%emt 0:00:24]} e5 {[%emt 0:00:06]} 11. Qb3 {[%emt 0:09:30]} Re8 {[%emt 0:22:49]} 12. Nc3 {[%emt 0:17:22]} Qa5 {[%emt 0:02:38]} 13. Rfe1 {[%emt 0:11:58]} exd4 {[%emt 0:16:33]} 14. exd4 {[%emt 0:02:37]} Ne4 {[%emt 0:08:21]} 15. Nxe4 {[%emt 0:08:17]} Bxe4 {[%emt 0:00:18]} 16. Qxb7 {[%emt 0:08:26]} Nc5 {[%emt 0:11:54]} 17. dxc5 {[%emt 0:00:39]} Reb8 {[%emt 0:00:14]} 18. Qe7 {[%emt 0:07:47]} Re8 {[%emt 0:01:01]} 19. Qb7 {[%emt 0:07:40]} Reb8 {[%emt 0:00:17]} 20. Qxa8 {[%emt 0:02:26]} Rxa8 {[%emt 0:00:08]} 21. Bxg7 {[%emt 0:00:07]} Bxf3 {[%emt 0:00:09]} 22. Bxf3 {[%emt 0:02:51]} Kxg7 {[%emt 0:00:07]} 23. Bxc6 {[%emt 0:00:05]} Rc8 {[%emt 0:00:50]} 24. Bd5 {[%emt 0:00:13]} Qxc5 {[%emt 0:02:52]} 25. h4 {[%emt 0:00:57]} Rc7 {[%emt 0:01:35]} 26. Rab1 {[%emt 0:00:29]} Qa3 {[%emt 0:03:44]} 27. Re2 {[%emt 0:02:53]} Qc3 {[%emt 0:02:26]} 28. Rbe1 {[%emt 0:01:54]} Kf6 {[%emt 0:01:39]} 29. Re3 {[%emt 0:00:23]} Qb4 {[%emt 0:00:37]} 30. a3 {[%emt 0:00:51]} Qc5 {[%emt 0:02:37]} 31. Rb1 {[%emt 0:00:35]} Kg7 {[%emt 0:01:35]} 32. Rf3 {[%emt 0:01:26]} Re7 {[%emt 0:00:45]} 33. Rb5 {[%emt 0:01:42]} Qd4 {[%emt 0:01:03]} 34. Kg2 {[%emt 0:01:11]} f5 {[%emt 0:03:16]} 35. Rfb3 {[%emt 0:01:04]} Re2 {[%emt 0:00:46]} 36. Rb7+ {[%emt 0:00:16]} Kh8 {[%emt 0:06:18]} 37. Rf3 {[%emt 0:01:48]} Re1 {[%emt 0:02:50]} 38. Rfb3 {[%emt 0:03:38]} Re2 {[%emt 0:00:48]} 39. Rb8+ {[%emt 0:02:06]} Kg7 {[%emt 0:00:02]} 40. Rf3 {[%emt 0:00:26]} Re1 {[%emt 0:03:11]} 41. Rbb3 {[%emt 0:15:08]} Qa1 {[%emt 0:01:26]} 42. Rb7+ {[%emt 0:03:14]} Kh6 {[%emt 0:09:23]} 43. Rf4 {[%emt 0:00:48]} Rh1 {[%emt 0:00:41]} 44. Rxa7 {[%emt 0:06:10]} Qf1+ {[%emt 0:00:21]} 45. Kf3 {[%emt 0:00:03]} Qd3+ {[%emt 0:05:03]} 46. Kg2 {[%emt 0:00:05]} Qf1+ {[%emt 0:00:09]} 47. Kf3 {[%emt 0:00:04]} Rh2 {[%emt 0:00:24]} 48. Ke3 {[%emt 0:00:10]} Qe1+ {[%emt 0:00:06]} 49. Kd3 {[%emt 0:03:01]} Rxf2 {[%emt 0:00:06]} 50. Rxf2 {[%emt 0:00:07]} Qxf2 {[%emt 0:00:07]} 51. Ra8 {[%emt 0:00:31]} Qxg3+ {[%emt 0:00:09]} 52. Kd4 {[%emt 0:01:57]} Qxh4+ {[%emt 0:00:26]} 53. Ke5 {[%emt 0:00:07]} Qe7+ {[%emt 0:01:17]} 54. Kd4 {[%emt 0:00:23]} f4 {[%emt 0:00:07]} 55. c5 {[%emt 0:00:08]} Qe3+ {[%emt 0:01:52]} 56. Kc4 {[%emt 0:00:17]} f3 {[%emt 0:00:28]} 57. Kb4 {[%emt 0:03:32]} f2 {[%emt 0:00:08]} 58. Bc4 {[%emt 0:00:04]} Qf4 {[%emt 0:01:46]} 59. Kb5 {[%emt 0:00:18]} Qxc4+ {[%emt 0:02:11]} 60. Kxc4 {[%emt 0:00:04]} f1=Q+ {[%emt 0:00:09]} 61. Kb4 {[%emt 0:00:01]} Qb1+ {[%emt 0:00:17]} 62. Ka5 {[%emt 0:00:15]} Qb7 {[%emt 0:00:07]} 63. Ra6 {[%emt 0:00:08]} Kh5 {[%emt 0:00:59]} 64. c6 {[%emt 0:01:00]} Qc7+ {[%emt 0:00:15]} 65. Kb5 {[%emt 0:00:22]} g5 {[%emt 0:00:07]} 66. Rb6 {[%emt 0:00:10]} g4 {[%emt 0:00:40]} 67. Rb7 {[%emt 0:00:08]} Qc8 {[%emt 0:00:47]} 68. Kb6 {[%emt 0:05:05]} g3 {[%emt 0:00:54]} 69. Rg7 {[%emt 0:00:49]} Kh6 {[%emt 0:00:08]} 70. Rc7 {[%emt 0:00:53]} Qd8 {[%emt 0:00:17]} 71. Kb7 {[%emt 0:00:04]} g2 {[%emt 0:00:34]} 72. Rd7 {[%emt 0:00:05]} Qf8 {[%emt 0:02:42]} 73. Rd1 {[%emt 0:00:21]} Qxa3 {[%emt 0:00:12]} 0-1

[Event "Festival Groningen-A 2024"]
[Site "Groningen"]
[Date "2024.12.29"]
[Round "8.24"]
[White "Duson, Robin"]
[Black "Sharma, Dinesh K."]
[Result "0-1"]
[ECO "D15"]
[WhiteElo "2159"]
[BlackElo "2200"]
[Annotator "RC"]
[PlyCount "86"]
[EventDate "2024.12.21"]
[EventType "swiss"]
[EventCountry "NED"]
[SourceTitle "playchess.com"]
[Source "ChessBase"]
[SourceQuality "1"]
[TimeControl "40/5400+30:1800+30"]

1. d4 {[%emt 0:00:05]} d5 {[%emt 0:00:15]} 2. c4 {[%emt 0:00:27]} c6 {[%emt 0:00:03]} 3. Nf3 {[%emt 0:00:23]} Nf6 {[%emt 0:00:05]} 4. e3 {[%emt 0:00:13]} Bf5 {[%emt 0:00:13]} 5. Nc3 {[%emt 0:00:26]} a6 {[%emt 0:04:20]} 6. Qb3 {[%emt 0:05:03]} Ra7 {[%emt 0:00:02]} 7. Bd2 {[%emt 0:02:25]} e6 {[%emt 0:01:11]} 8. Be2 {[%emt 0:05:46]} Be7 {[%emt 0:02:08]} 9. O-O {[%emt 0:02:25]} dxc4 {[%emt 0:11:41]} 10. Bxc4 {[%emt 0:02:02]} b5 {[%emt 0:00:29]} 11. Be2 {[%emt 0:01:27]} Nbd7 {[%emt 0:00:23]} 12. a4 {[%emt 0:09:21]} b4 {[%emt 0:00:52]} 13. Na2 {[%emt 0:00:39]} a5 {[%emt 0:02:00]} 14. Rfd1 {[%emt 0:02:31]} O-O {[%emt 0:02:01]} 15. Nc1 {[%emt 0:04:16]} c5 {[%emt 0:04:10]} 16. Nd3 {[%emt 0:02:22]} Qb6 {[%emt 0:03:58]} 17. Rac1 {[%emt 0:03:11]} Rc7 {[%emt 0:05:24]} 18. dxc5 {[%emt 0:05:12]} Bxc5 {[%emt 0:05:33]} 19. Be1 {[%emt 0:01:42]} Be4 {[%emt 0:03:54]} 20. Nde5 {[%emt 0:05:22]} Nxe5 {[%emt 0:11:16]} 21. Nxe5 {[%emt 0:00:16]} Bd5 {[%emt 0:01:34]} 22. Bc4 {[%emt 0:04:33]} Rfc8 {[%emt 0:02:46]} 23. Bxd5 {[%emt 0:08:05]} exd5 {[%emt 0:01:58]} 24. Qd3 {[%emt 0:03:19]} Bd6 {[%emt 0:10:10]} 25. Rxc7 {[%emt 0:00:46]} Qxc7 {[%emt 0:01:25]} 26. Nf3 {[%emt 0:01:38]} Kf8 {[%emt 0:03:31]} 27. h3 {[%emt 0:02:16]} Qc2 {[%emt 0:06:33]} 28. b3 {[%emt 0:07:37]} Qxd3 {[%emt 0:01:51]} 29. Rxd3 {[%emt 0:00:07]} Ke7 {[%emt 0:00:52]} 30. Kf1 {[%emt 0:00:59]} g6 {[%emt 0:02:25]} 31. Nd4 {[%emt 0:00:55]} Be5 {[%emt 0:00:56]} 32. Nb5 {[%emt 0:02:55]} Ke6 {[%emt 0:02:40]} 33. g4 {[%emt 0:02:11]} Ne4 {[%emt 0:04:09]} 34. f4 {[%emt 0:05:16]} Bb2 {[%emt 0:02:22]} 35. f5+ {[%emt 0:03:19]} gxf5 {[%emt 0:00:15]} 36. gxf5+ {[%emt 0:00:06]} Ke5 {[%emt 0:00:58]} 37. Kg2 {[%emt 0:03:30]} Rc1 {[%emt 0:04:37]} 38. Bg3+ {[%emt 0:00:47]} Nxg3 {[%emt 0:00:00]} 39. Kxg3 {[%emt 0:00:08]} Ke4 {[%emt 0:00:00]} 40. Rd2 {[%emt 0:00:58]} Be5+ {[%emt 0:00:00]} 41. Kg2 {[%emt 0:32:12]} Rc3 {[%emt 0:03:17]} 42. Nd4 {[%emt 0:00:00]} Kxe3 {[%emt 0:05:11]} 43. Nf3 {[%emt 0:00:00]} d4 {[%emt 0:01:32]} 0-1

[Event "Festival Groningen-A 2024"]
[Site "Groningen"]
[Date "2024.12.29"]
[Round "8.25"]
[White "Wouters, Casper"]
[Black "Grooten, Herman"]
[Result "0-1"]
[ECO "B40"]
[WhiteElo "2110"]
[BlackElo "2183"]
[Annotator "RC"]
[PlyCount "72"]
[EventDate "2024.12.21"]
[EventType "swiss"]
[EventCountry "NED"]
[SourceTitle "playchess.com"]
[Source "ChessBase"]
[SourceQuality "1"]
[TimeControl "40/5400+30:1800+30"]

1. e4 {[%emt 0:00:04]} c5 {[%emt 0:00:05]} 2. Nf3 {[%emt 0:00:09]} e6 {[%emt 0:00:05]} 3. g3 {[%emt 0:00:17]} b6 {[%emt 0:00:13]} 4. Bg2 {[%emt 0:00:23]} Bb7 {[%emt 0:00:06]} 5. Qe2 {[%emt 0:01:56]} Nc6 {[%emt 0:02:50]} 6. O-O {[%emt 0:01:02]} g6 {[%emt 0:00:33]} 7. Na3 {[%emt 0:03:09]} d6 {[%emt 0:04:55]} 8. e5 {[%emt 0:12:16]} dxe5 {[%emt 0:02:27]} 9. Nxe5 {[%emt 0:03:57]} Nd4 {[%emt 0:00:21]} 10. Qe3 {[%emt 0:04:53]} Bxg2 {[%emt 0:00:21]} 11. Kxg2 {[%emt 0:00:09]} Qd5+ {[%emt 0:00:26]} 12. f3 {[%emt 0:02:35]} Bg7 {[%emt 0:03:34]} 13. Nd3 {[%emt 0:04:01]} Ne7 {[%emt 0:03:17]} 14. Nf2 {[%emt 0:07:20]} O-O {[%emt 0:07:28]} 15. d3 {[%emt 0:04:23]} f5 {[%emt 0:01:29]} 16. Nh3 {[%emt 0:03:13]} e5 {[%emt 0:02:26]} 17. Bd2 {[%emt 0:04:13]} Rae8 {[%emt 0:02:47]} 18. c3 {[%emt 0:12:28]} Ndc6 {[%emt 0:00:35]} 19. Qe2 {[%emt 0:01:49]} Rd8 {[%emt 0:01:16]} 20. Nf2 {[%emt 0:00:32]} Nc8 {[%emt 0:00:24]} 21. Kg1 {[%emt 0:01:19]} Nd6 {[%emt 0:03:02]} 22. Rfd1 {[%emt 0:04:51]} Rd7 {[%emt 0:10:33]} 23. Nc4 {[%emt 0:01:12]} Nb5 {[%emt 0:02:25]} 24. a4 {[%emt 0:01:50]} Nbd4 {[%emt 0:01:41]} 25. cxd4 {[%emt 0:02:36]} Nxd4 {[%emt 0:00:07]} 26. Qe3 {[%emt 0:00:49]} Nxf3+ {[%emt 0:00:17]} 27. Kf1 {[%emt 0:00:29]} Nxh2+ {[%emt 0:00:54]} 28. Ke2 {[%emt 0:00:48]} e4 {[%emt 0:01:21]} 29. Rdc1 {[%emt 0:09:05]} Bd4 {[%emt 0:05:01]} 30. Qf4 {[%emt 0:13:42]} Ng4 {[%emt 0:07:49]} 31. Be3 {[%emt 0:00:00]} exd3+ {[%emt 0:01:09]} 32. Kd2 {[%emt 0:00:00]} Nxe3 {[%emt 0:09:48]} 33. Nxe3 {[%emt 0:00:00]} Qb3 {[%emt 0:00:14]} 34. Nxd3 {[%emt 0:00:00]} Bxe3+ {[%emt 0:02:30]} 35. Qxe3 {[%emt 0:00:00]} Rfd8 {[%emt 0:00:16]} 36. Rc3 {[%emt 0:00:00]} Qxb2+ {[%emt 0:00:50]} 0-1

[Event "Festival Groningen-A 2024"]
[Site "Groningen"]
[Date "2024.12.29"]
[Round "8.26"]
[White "Zecha, Oscar"]
[Black "Grooten, Tommy"]
[Result "0-1"]
[ECO "B81"]
[WhiteElo "2134"]
[BlackElo "2153"]
[Annotator "RC"]
[PlyCount "92"]
[EventDate "2024.12.21"]
[EventType "swiss"]
[EventCountry "NED"]
[SourceTitle "playchess.com"]
[Source "ChessBase"]
[SourceQuality "1"]
[TimeControl "40/5400+30:1800+30"]

1. e4 {[%emt 0:00:16]} c5 {[%emt 0:00:02]} 2. Nf3 {[%emt 0:00:20]} e6 {[%emt 0:00:01]} 3. d4 {[%emt 0:00:04]} cxd4 {[%emt 0:00:01]} 4. Nxd4 {[%emt 0:00:06]} Nf6 {[%emt 0:00:02]} 5. Nc3 {[%emt 0:00:08]} d6 {[%emt 0:00:00]} 6. g4 {[%emt 0:00:07]} h6 {[%emt 0:00:01]} 7. Rg1 {[%emt 0:00:31]} Nc6 {[%emt 0:00:00]} 8. Be3 {[%emt 0:00:27]} Be7 {[%emt 0:00:01]} 9. Nb3 {[%emt 0:00:17]} a6 {[%emt 0:06:39]} 10. Qe2 {[%emt 0:00:50]} b5 {[%emt 0:01:29]} 11. O-O-O {[%emt 0:00:36]} Bb7 {[%emt 0:01:01]} 12. Nc5 {[%emt 0:13:15]} Bc8 {[%emt 0:06:31]} 13. h4 {[%emt 0:21:57]} b4 {[%emt 0:12:40]} 14. N3a4 {[%emt 0:08:06]} Qa5 {[%emt 0:01:38]} 15. Nb6 {[%emt 0:51:00]} dxc5 {[%emt 0:01:16]} 16. Nxa8 {[%emt 0:00:00]} Bb7 {[%emt 0:06:31]} 17. g5 {[%emt 0:00:00]} hxg5 {[%emt 0:01:21]} 18. hxg5 {[%emt 0:00:00]} Nxe4 {[%emt 0:01:40]} 19. Bf4 {[%emt 0:00:00]} Nd4 {[%emt 0:06:17]} 20. Nc7+ {[%emt 0:00:00]} Kf8 {[%emt 0:00:30]} 21. Qc4 {[%emt 0:00:00]} b3 {[%emt 0:09:22]} 22. cxb3 {[%emt 0:00:00]} Qxa2 {[%emt 0:00:17]} 23. Rxd4 {[%emt 0:00:00]} cxd4 {[%emt 0:02:37]} 24. Qa4 {[%emt 0:00:00]} Qxa4 {[%emt 0:01:29]} 25. bxa4 {[%emt 0:00:00]} Rh4 {[%emt 0:06:07]} 26. Be5 {[%emt 0:00:00]} Nc5 {[%emt 0:04:35]} 27. g6 {[%emt 0:00:00]} Re4 {[%emt 0:06:28]} 28. Bg3 {[%emt 0:00:34]} d3 {[%emt 0:02:36]} 29. Kd2 {[%emt 0:05:43]} Rc4 {[%emt 0:06:01]} 30. Be5 {[%emt 0:00:37]} Rc2+ {[%emt 0:01:47]} 31. Ke3 {[%emt 0:00:00]} d2 {[%emt 0:00:41]} 32. Be2 {[%emt 0:00:20]} Ne4 {[%emt 0:08:01]} 33. Bd1 {[%emt 0:01:11]} Rc1 {[%emt 0:02:16]} 34. Bd4 {[%emt 0:00:31]} Rxc7 {[%emt 0:00:38]} 35. gxf7 {[%emt 0:00:29]} Bf6 {[%emt 0:00:52]} 36. Bxf6 {[%emt 0:00:14]} Nxf6 {[%emt 0:00:37]} 37. Kxd2 {[%emt 0:00:05]} Kxf7 {[%emt 0:00:18]} 38. Be2 {[%emt 0:00:33]} Ne4+ {[%emt 0:01:06]} 39. Ke3 {[%emt 0:00:01]} Nd6 {[%emt 0:00:45]} 40. Rd1 {[%emt 0:00:49]} Nf5+ {[%emt 0:00:08]} 41. Kf4 {[%emt 0:30:34]} Kf6 {[%emt 0:33:33]} 42. Bf3 {[%emt 0:00:00]} g5+ {[%emt 0:00:00]} 43. Kg4 {[%emt 0:00:00]} Rc4+ {[%emt 0:00:00]} 44. Kh3 {[%emt 0:00:00]} Bxf3 {[%emt 0:00:00]} 45. Rd4 {[%emt 0:00:00]} Rxd4 {[%emt 0:00:00]} 46. Kh2 {[%emt 0:00:00]} Rh4+ {[%emt 0:00:00]} 0-1

[Event "Festival Groningen-A 2024"]
[Site "Groningen"]
[Date "2024.12.29"]
[Round "8.27"]
[White "Spit, Vincent"]
[Black "Boeren, Jurriaan"]
[Result "1/2-1/2"]
[ECO "C95"]
[WhiteElo "2113"]
[BlackElo "2147"]
[Annotator "NA RC"]
[PlyCount "103"]
[EventDate "2024.12.21"]
[EventType "swiss"]
[EventCountry "NED"]
[SourceTitle "playchess.com"]
[Source "ChessBase"]
[SourceQuality "1"]
[TimeControl "40/5400+30:1800+30"]

1. e4 {[%emt 0:00:05]} e5 {[%emt 0:00:03]} 2. Nf3 {[%emt 0:00:08]} Nc6 {[%emt 0:00:03]} 3. Bb5 {[%emt 0:00:34]} a6 {[%emt 0:00:04]} 4. Ba4 {[%emt 0:00:09]} Nf6 {[%emt 0:00:03]} 5. O-O {[%emt 0:00:14]} Be7 {[%emt 0:00:04]} 6. Re1 {[%emt 0:00:11]} b5 {[%emt 0:00:02]} 7. Bb3 {[%emt 0:00:06]} d6 {[%emt 0:00:03]} 8. c3 {[%emt 0:00:24]} O-O {[%emt 0:00:06]} 9. h3 {[%emt 0:00:08]} Nb8 {[%emt 0:00:04]} 10. d4 {[%emt 0:00:22]} Nbd7 {[%emt 0:00:03]} 11. Nbd2 {[%emt 0:00:27]} Bb7 {[%emt 0:00:05]} 12. Bc2 {[%emt 0:00:24]} Re8 {[%emt 0:00:07]} 13. Nf1 {[%emt 0:00:50]} Bf8 {[%emt 0:00:05]} 14. Ng3 {[%emt 0:00:33]} g6 {[%emt 0:00:05]} 15. Bd2 {[%emt 0:00:25]} Bg7 {[%emt 0:07:23]} 16. Qc1 {[%emt 0:00:38] C95: Closed Ruy Lopez: Breyer Variation with 10 d4.} d5 {[%emt 0:02:12]} 17. Bg5 {[%emt 0:02:09]} Qc8 {[%emt 0:24:27]} 18. dxe5 {[%emt 0:07:58]} Nxe4 {[%emt 0:11:38]} 19. Nxe4 {[%emt 0:03:17]} dxe4 {[%emt 0:02:01]} 20. Bxe4 {[%emt 0:02:26]} Nxe5 {[%emt 0:09:42]} 21. Nxe5 {[%emt 0:05:46]} Rxe5 {[%emt 0:02:37]} 22. Bxb7 {[%emt 0:04:30]} Qxb7 {[%emt 0:00:47]} 23. Rxe5 {[%emt 0:01:26]} Bxe5 {[%emt 0:00:03]} 24. Qe3 {[%emt 0:01:19]} Qd5 {[%emt 0:03:45]} 25. Re1 {[%emt 0:01:51]} Bd6 {[%emt 0:06:36]} 26. b3 {[%emt 0:04:06]} a5 {[%emt 0:04:04]} 27. Bh6 {[%emt 0:12:54]} Bf8 {[%emt 0:04:36]} 28. Bxf8 {[%emt 0:01:21]} Rxf8 {[%emt 0:00:05]} 29. Qe5 {[%emt 0:01:56]} Qxe5 {[%emt 0:02:13]} 30. Rxe5 {[%emt 0:00:15]} Rb8 {[%emt 0:01:44]} 31. Rc5 {[%emt 0:02:09]} Rb7 {[%emt 0:01:52]} 32. f4 {[%emt 0:02:19]} Kf8 {[%emt 0:01:42]} 33. Kf2 {[%emt 0:00:44]} Ke7 {[%emt 0:01:37]} 34. Ke3 {[%emt 0:01:14]} Kd6 {[%emt 0:00:49]} 35. Kd4 $11 {[%emt 0:01:24]} c6 {[%emt 0:00:23]} 36. Re5 {[%emt 0:04:43]} f6 {[%emt 0:04:59]} 37. Re8 {[%emt 0:00:43]} c5+ {[%emt 0:01:09]} 38. Kd3 {[%emt 0:00:18]} Ra7 {[%emt 0:02:17]} 39. Rb8 {[%emt 0:07:30]} Kc6 {[%emt 0:03:56]} 40. Rc8+ {[%emt 0:02:44]} Kd6 {[%emt 0:01:59]} 41. a4 {[%emt 0:34:19]} c4+ {[%emt 0:15:46]} 42. Kc2 {[%emt 0:00:00]} bxa4 {[%emt 0:02:31]} 43. Rxc4 {[%emt 0:00:00]} axb3+ {[%emt 0:01:40]} 44. Kxb3 {[%emt 0:00:00]} Rc7 {[%emt 0:01:46]} 45. Rd4+ {[%emt 0:00:00]} Ke6 {[%emt 0:02:51]} 46. c4 {[%emt 0:00:00]} Rc5 {[%emt 0:00:58]} 47. Kc3 {[%emt 0:00:00]} h5 {[%emt 0:01:53]} 48. Rd8 {[%emt 0:00:00]} h4 {[%emt 0:01:36]} 49. Re8+ {[%emt 0:00:00]} Kd7 {[%emt 0:01:24]} 50. Re4 {[%emt 0:00:00]} Kd6 {[%emt 0:01:49]} 51. Rd4+ {[%emt 0:00:00]} Kc6 {[%emt 0:01:22]} 52. Re4 {[%emt 0:00:00]} 1/2-1/2

[Event "Festival Groningen-A 2024"]
[Site "Groningen"]
[Date "2024.12.29"]
[Round "8.28"]
[White "Ratsma, Midas"]
[Black "Ponnio, Toni"]
[Result "1-0"]
[ECO "C47"]
[WhiteElo "2326"]
[BlackElo "2111"]
[Annotator "RC"]
[PlyCount "91"]
[EventDate "2024.12.21"]
[EventType "swiss"]
[EventCountry "NED"]
[SourceTitle "playchess.com"]
[Source "ChessBase"]
[SourceQuality "1"]
[TimeControl "40/5400+30:1800+30"]

1. e4 {[%emt 0:00:45]} e5 {[%emt 0:00:08]} 2. Nf3 {[%emt 0:00:47]} Nc6 {[%emt 0:00:07]} 3. Nc3 {[%emt 0:01:29]} Nf6 {[%emt 0:00:11]} 4. d4 {[%emt 0:02:09]} exd4 {[%emt 0:00:13]} 5. Nxd4 {[%emt 0:00:07]} Bb4 {[%emt 0:00:54]} 6. Nxc6 {[%emt 0:00:09]} bxc6 {[%emt 0:00:09]} 7. Bd3 {[%emt 0:00:08]} O-O {[%emt 0:01:32]} 8. O-O {[%emt 0:00:15]} d5 {[%emt 0:02:30]} 9. exd5 {[%emt 0:00:17]} Bg4 {[%emt 0:00:58]} 10. Be2 {[%emt 0:00:24]} Bxe2 {[%emt 0:01:46]} 11. Nxe2 {[%emt 0:00:21]} cxd5 {[%emt 0:02:40]} 12. Bg5 {[%emt 0:00:29]} Be7 {[%emt 0:07:23]} 13. Nd4 {[%emt 0:00:30]} Qd7 {[%emt 0:04:38]} 14. Qf3 {[%emt 0:00:21]} Ne4 {[%emt 0:02:13]} 15. Be3 {[%emt 0:11:41]} Ng5 {[%emt 0:20:27]} 16. Qh5 {[%emt 0:08:03]} g6 {[%emt 0:08:45]} 17. Qh6 {[%emt 0:08:25]} Bf6 {[%emt 0:03:48]} 18. Rad1 {[%emt 0:04:29]} Ne6 {[%emt 0:02:57]} 19. b3 {[%emt 0:14:03]} Rfd8 {[%emt 0:05:02]} 20. Rfe1 {[%emt 0:08:04]} Bg7 {[%emt 0:05:15]} 21. Qh4 {[%emt 0:00:34]} Nf8 {[%emt 0:04:32]} 22. Bh6 {[%emt 0:05:46]} Re8 {[%emt 0:01:28]} 23. Bxg7 {[%emt 0:03:16]} Kxg7 {[%emt 0:01:25]} 24. Nf3 {[%emt 0:02:23]} Qf5 {[%emt 0:05:31]} 25. Qd4+ {[%emt 0:02:33]} Kg8 {[%emt 0:00:12]} 26. Qxd5 {[%emt 0:03:29]} Qxc2 {[%emt 0:02:45]} 27. Ng5 {[%emt 0:03:30]} Qf5 {[%emt 0:03:20]} 28. Qxf5 {[%emt 0:00:30]} gxf5 {[%emt 0:00:05]} 29. g3 {[%emt 0:02:56]} h6 {[%emt 0:04:31]} 30. Nf3 {[%emt 0:00:15]} Rxe1+ {[%emt 0:00:29]} 31. Rxe1 {[%emt 0:00:45]} Ne6 {[%emt 0:00:21]} 32. Re5 {[%emt 0:04:42]} c5 {[%emt 0:02:56]} 33. Rxf5 {[%emt 0:01:32]} a5 {[%emt 0:00:18]} 34. Ne5 {[%emt 0:03:23]} Nd4 {[%emt 0:00:38]} 35. Rf6 {[%emt 0:01:14]} a4 {[%emt 0:00:36]} 36. bxa4 {[%emt 0:02:13]} Rxa4 {[%emt 0:00:13]} 37. Rxf7 {[%emt 0:01:53]} c4 {[%emt 0:01:34]} 38. Rc7 {[%emt 0:00:46]} c3 {[%emt 0:00:19]} 39. Kg2 {[%emt 0:02:23]} c2 {[%emt 0:00:19]} 40. Nf3 {[%emt 0:01:49]} Nxf3 {[%emt 0:00:59]} 41. Kxf3 {[%emt 0:30:08]} Ra3+ {[%emt 0:30:27]} 42. Kg4 {[%emt 0:00:00]} Rxa2 {[%emt 0:00:00]} 43. Kh5 {[%emt 0:00:00]} c1=Q {[%emt 0:00:00]} 44. Rxc1 {[%emt 0:00:00]} Rxf2 {[%emt 0:00:00]} 45. Kg6 {[%emt 0:00:00]} Kf8 {[%emt 0:00:00]} 46. Rh1 {[%emt 0:00:00]} 1-0